bitfinex-derivatives/quotes_ETHF0:USTF0_20220103
["timestamp","ask_amount","ask_price","bid_price","bid_amount"]
[1641250994456,0.128157,3747.1,3746.4,5.429]
[1641250995058,0.128157,3747.1,3745.9,2.98097248]
[1641250995256,2.00479,3746.9,3746.0,2.00479]
[1641250995462,2.00479,3746.9,3746.4,1.15028837]
[1641250995658,2.00479,3746.9,3746.4,1.27844537]
[1641250996060,2.00479,3746.9,3746.4,1.15028837]
[1641250999063,0.19702157,3746.9,3746.4,1.15028837]
[1641250999263,0.19702157,3746.9,3746.4,3.15507837]
[1641251000263,11.64702157,3746.9,3746.4,3.15507837]
[1641251000464,1.5,3746.7,3746.4,3.15507837]
[1641251000665,0.229991,3746.6,3746.0,2.00479]
[1641251001866,1.5,3746.4,3745.2,5.429]
[1641251002066,1.5,3746.2,3745.2,5.429]
[1641251002866,1.5,3746.2,3745.2,6.1795116]
[1641251003066,1.5,3746.3,3745.2,0.7505116]
[1641251003268,2.00479,3745.8,3745.2,0.7505116]
[1641251003466,0.128157,3745.7,3745.2,0.7505116]
[1641251006069,0.843057,3745.7,3745.2,0.7505116]
[1641251007269,12.293057,3745.7,3745.2,0.7505116]
[1641251007469,2.00479,3745.4,3745.2,0.7505116]
[1641251007669,0.229991,3745.3,3745.2,0.7505116]
[1641251008172,2.00479,3745.4,3745.2,0.7505116]
[1641251008771,2.00479,3745.8,3745.2,0.7505116]
[1641251014775,0.128157,3745.9,3745.2,0.7505116]
[1641251015375,0.128157,3745.9,3745.4,2.00479]
[1641251019083,1.628157,3745.9,3745.4,2.00479]
[1641251019281,1.4627395,3745.9,3745.4,2.00479]
[1641251019484,0.128157,3745.9,3745.4,2.00479]
[1641251019886,1.33463772,3745.8,3745.4,2.00479]
[1641251020083,3.43533772,3745.8,3745.4,2.00479]
[1641251020285,1.5,3745.6,3745.4,2.00479]
[1641251020487,1.56476589,3745.5,3745.4,2.00479]
[1641251020684,1.33477489,3745.5,3745.4,2.00479]
[1641251021288,1.56476589,3745.5,3745.4,2.00479]
[1641251021988,1.56476589,3745.5,3744.9,2.00479]
[1641251023187,3.06476589,3745.5,3744.9,2.00479]
[1641251023387,1.56476589,3745.5,3744.9,2.00479]
[1641251023588,2.00479,3745.4,3744.5,3.05169]
[1641251025088,3.50479,3745.4,3744.5,3.05169]
[1641251025687,2.00479,3745.4,3744.5,3.05169]
[1641251027588,2.00479,3745.4,3744.6,0.128157]
[1641251027790,1e-08,3745.4,3744.6,0.677357]
[1641251028588,1e-08,3745.4,3744.9,1.5]
[1641251029189,0.128157,3745.9,3744.9,1.5]
[1641251029389,0.128157,3745.9,3744.6,0.677357]
[1641251029590,2.00479,3745.8,3744.9,2.00479]
[1641251030093,0.19657122,3745.8,3744.9,2.00479]
[1641251030492,0.19657122,3745.8,3744.9,3.50479]
[1641251031692,0.19657122,3745.8,3745.3,2.00479]
[1641251031893,3.33936359,3746.3,3745.4,0.90954192]
[1641251032093,1.33432251,3746.7,3745.8,1.5]
[1641251032493,28.4393,3747.4,3746.0,1.5]
[1641251033695,28.4393,3747.4,3747.3,2.00479]
[1641251033894,28.797448,3747.4,3747.3,2.00479]
[1641251034097,0.358148,3747.4,3747.3,2.00479]
[1641251039904,1.69230495,3747.4,3747.3,2.00479]
[1641251041709,1.69230495,3747.4,3747.0,2.00479]
[1641251047913,1.33415695,3747.4,3747.0,2.132947]
[1641251048113,2.00479,3747.8,3747.0,2.132947]
[1641251048314,2.00479,3747.8,3747.0,2.774747]
[1641251049315,0.128157,3747.7,3747.0,2.774747]
[1641251049519,0.128157,3747.7,3747.0,2.64659]
[1641251049716,0.631957,3747.7,3747.0,2.00479]
[1641251049918,1.33401457,3747.5,3747.0,2.00479]
[1641251055724,0.128157,3747.7,3747.4,2.00479]
[1641251056427,1.56397354,3747.6,3747.4,2.00479]
[1641251056629,0.229991,3747.6,3747.4,2.00479]
[1641251057228,1.56397354,3747.6,3747.4,2.00479]
[1641251060232,0.229991,3747.6,3747.4,2.00479]
[1641251063036,1.18201274,3748.2,3747.5,0.81683198]
[1641251063635,1.18201274,3748.2,3747.5,2.31683198]
[1641251063938,1.18201274,3748.2,3748.1,2.00479]
[1641251064135,1.18201274,3748.2,3748.1,2.132947]
[1641251064735,1.47963911,3748.5,3748.1,2.132947]
[1641251064938,1.47963911,3748.5,3748.3,1.5]
[1641251065237,2.21751097,3749.0,3748.3,0.5893]
[1641251065837,2.21751097,3749.0,3748.7,2.00479]
[1641251066037,2.21751097,3749.0,3748.7,3.24339985]
[1641251066643,2.00479,3749.6,3748.7,3.24339985]
[1641251066839,1.33326223,3749.7,3748.7,3.24339985]
[1641251067240,1.7754819,3749.8,3748.7,3.24339985]
[1641251067641,3.10867836,3749.8,3748.7,3.24339985]
[1641251067844,3.10867836,3749.8,3749.7,2.00479]
[1641251068042,1.33319646,3749.8,3749.7,2.00479]
[1641251068443,1.56318746,3749.8,3749.7,2.00479]
[1641251068643,1.33319646,3749.8,3749.7,2.00479]
[1641251068843,0.128157,3750.1,3749.7,1e-08]
[1641251069044,1.3331698,3749.9,3748.7,3.24339985]
[1641251069444,1.5,3749.8,3748.7,3.24339985]
[1641251069645,1.3331698,3749.9,3748.7,3.24339985]
[1641251069845,1.3331698,3749.9,3749.4,2.00479]
[1641251070452,0.15060482,3749.8,3749.4,2.00479]
[1641251071646,1.3331698,3749.9,3749.4,2.00479]
[1641251071846,1.33319646,3749.8,3749.4,2.00479]
[1641251073850,1.7754819,3749.6,3749.4,2.00479]
[1641251074049,0.229991,3749.5,3749.4,2.00479]
[1641251074549,1.70169584,3749.5,3749.4,2.00479]
[1641251074751,1.47170484,3749.5,3749.4,2.00479]
[1641251076550,1.47170484,3749.6,3749.4,2.00479]
[1641251076750,0.229991,3749.5,3749.4,2.00479]
[1641251077554,1.47170484,3749.6,3749.4,2.00479]
[1641251077753,1.70169584,3749.6,3749.4,2.00479]
[1641251079052,1.47170484,3749.6,3749.4,2.00479]
[1641251080452,1.70169584,3749.6,3749.4,2.00479]
[1641251080654,0.229991,3749.6,3749.4,2.00479]
[1641251081055,1.47170484,3749.7,3749.4,2.00479]
[1641251081956,1.7754819,3750.0,3749.4,2.00479]
[1641251081957,1.47170484,3749.6,3749.5,0.87484868]
[1641251082958,0.2365479,3749.8,3749.5,0.87484868]
[1641251084660,1.17807018,3749.9,3749.5,0.87484868]
[1641251088061,1.17807018,3749.9,3749.8,2.00479]
[1641251089063,1.17807018,3749.9,3749.8,3.50479]
[1641251089764,1.17807018,3749.9,3749.8,2.00479]
[1641251089966,0.229991,3749.9,3749.8,2.00479]
[1641251090164,1.17807018,3750.0,3749.8,2.00479]
[1641251091166,0.2365479,3749.9,3749.8,2.00479]
[1641251092166,1.17807018,3750.1,3749.8,2.00479]
[1641251092367,2.00479,3750.6,3749.8,2.00479]
[1641251092567,1.5,3750.5,3749.8,2.00479]
[1641251092869,1.5,3749.9,3748.4,32.2796]
[1641251093067,1.5,3749.4,3747.6,5.429]
[1641251093268,1.33352003,3748.9,3747.6,5.429]
[1641251093470,1.89702003,3748.9,3747.6,5.429]
[1641251093868,0.5635,3748.9,3747.5,1.25692661]
[1641251094068,2.00479,3747.8,3747.5,1.25692661]
[1641251094272,0.229991,3747.7,3747.5,1.25692661]
[1641251094567,0.229991,3747.7,3746.9,2.39689]
[1641251094568,0.128157,3747.6,3746.9,2.39689]
[1641251094768,0.128157,3747.6,3746.9,2.00479]
[1641251095569,1.5,3747.3,3746.0,0.5591]
[1641251095772,1.5,3746.9,3745.2,1.33409288]
[1641251095973,11.45,3746.8,3745.2,1.33409288]
[1641251096171,2.00479,3746.2,3745.4,2.00479]
[1641251096671,0.128157,3746.1,3745.4,2.00479]
[1641251096869,0.912057,3746.1,3745.4,2.00479]
[1641251097072,0.912057,3746.1,3745.4,2.132947]
[1641251097270,0.912057,3746.1,3745.6,1.5]
[1641251099074,0.912057,3746.1,3745.5,2.98097248]
[1641251099676,0.912057,3746.1,3745.6,2.98097248]
[1641251099876,0.912057,3746.1,3745.6,4.48097248]
[1641251100279,0.912057,3746.1,3745.6,2.98097248]
[1641251101081,0.7839,3746.1,3745.7,0.128157]
[1641251102281,2.132947,3746.2,3745.7,0.128157]
[1641251102880,2.00479,3746.2,3745.8,1.5]
[1641251103082,2.00479,3746.6,3746.1,1.5]
[1641251103280,1.17807018,3746.8,3746.5,1.5]
[1641251103480,1.17807018,3746.9,3746.6,0.128157]
[1641251104281,1.17807018,3746.9,3746.7,1.0499742]
[1641251104483,1.17807018,3746.9,3746.8,1.5]
[1641251104686,1.47170484,3747.2,3746.8,1.5]
[1641251104885,1.7754819,3747.5,3747.1,1.5]
[1641251105087,1.17487247,3747.5,3746.9,1.5]
[1641251105285,1.17487247,3747.5,3746.7,2.5499742]
[1641251105685,1.17487247,3747.5,3747.0,1.5]
[1641251106086,0.128157,3747.7,3747.0,1.5]
[1641251106289,0.128157,3747.7,3747.2,2.00479]
[1641251106486,0.44502761,3747.7,3747.2,2.75720888]
[1641251107288,0.128157,3747.7,3747.2,2.75720888]
[1641251107989,1.47170484,3748.2,3747.2,2.75720888]
[1641251108187,1.47170484,3748.2,3747.6,2.00479]
[1641251108488,0.128157,3748.1,3747.6,2.00479]
[1641251109489,0.31692248,3748.0,3747.6,2.00479]
[1641251111292,0.31692248,3748.0,3747.2,0.75241888]
[1641251112293,0.31692248,3748.0,3747.6,2.00479]
[1641251115094,1.49287915,3748.0,3747.6,2.00479]
[1641251116499,1.17595667,3747.8,3747.6,2.00479]
[1641251117801,1.47170484,3748.1,3747.6,2.00479]
[1641251117802,1.49287915,3748.1,3747.6,2.00479]
[1641251118201,1.17595667,3748.1,3748.0,1.5]
[1641251118402,2.21751097,3749.0,3748.0,3.48470986]
[1641251118603,4.06476541,3749.8,3748.9,5.34218307]
[1641251118802,4.42298716,3750.4,3749.4,2.83232432]
[1641251119002,1.74981702,3750.7,3750.3,1.5]
[1641251119204,0.96281702,3750.7,3750.6,2.83217523]
[1641251119602,0.96281702,3750.7,3750.6,1.33217523]
[1641251119804,0.96281702,3750.7,3750.6,1.86580023]
[1641251120206,2.18727127,3751.0,3750.6,4.13581077]
[1641251120405,4.42298716,3752.4,3750.9,2.8318665]
[1641251120606,4.42298716,3752.4,3752.3,4.00958]
[1641251120910,31.4477,3753.4,3752.3,4.75358]
[1641251121103,2.00479,3753.6,3752.4,0.68269515]
[1641251121303,2.00479,3753.6,3752.4,2.18269515]
[1641251121603,2.00479,3753.6,3752.4,0.68269515]
[1641251121806,2.00479,3754.0,3752.4,0.68269515]
[1641251122607,2.00479,3754.0,3753.4,2.00479]
[1641251122805,0.128157,3753.9,3753.4,2.00479]
[1641251123408,1.45991885,3753.9,3753.4,2.00479]
[1641251123708,12.90991885,3753.9,3753.4,2.00479]
[1641251123909,12.90991885,3753.9,3752.8,0.92022802]
[1641251123910,2.83189666,3753.5,3752.8,0.92022802]
[1641251124111,2.83189666,3753.5,3749.4,1.33260484]
[1641251124112,11.45,3752.8,3749.4,1.33260484]
[1641251124313,1.5,3751.3,3749.4,1.33260484]
[1641251124510,1.5,3751.3,3750.2,2.00479]
[1641251124511,0.5178,3751.3,3750.2,2.00479]
[1641251124711,1.5,3750.6,3749.6,3.72923975]
[1641251124914,1.5,3750.3,3749.6,3.72923975]
[1641251125113,0.01,3749.6,3748.8,4.1859885]
[1641251125612,0.01,3749.6,3748.2,30.34034467]
[1641251125812,1.34328889,3749.6,3748.2,30.34034467]
[1641251126011,1.5,3749.3,3748.2,30.34034467]
[1641251126213,2.0349,3749.3,3748.2,30.34034467]
[1641251126411,2.0349,3749.3,3748.0,1.33216068]
[1641251126613,4.03969,3749.3,3748.5,2.00479]
[1641251127014,0.128157,3749.2,3748.5,2.00479]
[1641251128314,0.128157,3749.2,3748.5,1.99479]
[1641251129315,0.128157,3749.2,3748.5,2.122947]
[1641251129514,2.00479,3749.3,3748.6,1.03185659]
[1641251129712,1.75544425,3750.8,3748.8,1.5]
[1641251130316,1.46287021,3750.6,3748.7,4.267861]
[1641251130515,3.17508617,3750.3,3749.5,2.00479]
[1641251130815,0.128157,3750.2,3749.5,2.78619]
[1641251131618,0.128157,3750.2,3749.5,2.914347]
[1641251135218,2.00479,3750.3,3749.5,2.914347]
[1641251135424,2.00479,3750.7,3749.5,4.414347]
[1641251135619,2.00479,3750.7,3750.1,1.3323474]
[1641251135820,2.00479,3750.7,3750.0,1.33237047]
[1641251136018,1.17029617,3751.1,3750.0,1.5]
[1641251136220,1.17029617,3751.1,3750.6,1.5]
[1641251136420,1.17029617,3751.1,3750.7,0.128157]
[1641251136620,1.75544425,3751.6,3750.7,0.128157]
[1641251136621,1.17029617,3751.3,3750.7,4.393856]
[1641251136820,1.17029617,3751.3,3750.9,1.33207053]
[1641251137420,1.17029617,3751.3,3751.0,0.72347143]
[1641251138224,33.55599617,3752.9,3751.0,0.72347143]
[1641251138426,1.33213441,3752.8,3751.0,0.72347143]
[1641251138824,2.00479,3752.5,3751.7,2.00479]
[1641251139025,0.128157,3752.4,3751.7,2.67959]
[1641251139226,0.27866532,3752.4,3751.7,2.67959]
[1641251139628,0.128157,3752.4,3751.7,2.67959]
[1641251140532,0.15050946,3752.3,3751.7,2.67959]
[1641251141928,0.15050946,3752.3,3751.7,2.807747]
[1641251143135,0.15050946,3752.3,3751.8,1.5]
[1641251143332,2.00479,3752.5,3752.2,1.33160934]
[1641251144131,2.00479,3752.5,3752.2,2.01660234]
[1641251144332,2.00479,3752.5,3752.2,0.684993]
[1641251144933,0.128157,3752.7,3752.2,0.684993]
[1641251145134,0.128157,3752.7,3751.7,4.00958]
[1641251145334,0.896557,3752.7,3751.7,4.00958]
[1641251145537,0.15049699,3752.6,3751.7,4.00958]
[1641251147035,0.15049699,3752.6,3751.8,0.128157]
[1641251147237,2.00479,3752.9,3751.8,1.628157]
[1641251147637,2.00379,3752.9,3751.8,1.628157]
[1641251148039,2.00379,3752.9,3752.4,1.33154019]
[1641251148238,1.46287021,3753.5,3752.8,2.83135937]
[1641251148437,1.46287021,3753.5,3753.4,1.5]
[1641251148639,1.46287021,3753.5,3753.4,2.0202]
[1641251148841,1.46287021,3753.5,3753.4,4.782944]
[1641251149037,1.17573926,3754.0,3753.4,4.782944]
[1641251149239,1.17573926,3754.0,3753.4,4.911101]
[1641251150242,0.128157,3754.1,3753.5,1.23536618]
[1641251150641,5.88821272,3755.1,3753.5,1.23536618]
[1641251150642,2.96287021,3755.1,3753.6,4.262233]
[1641251150841,2.00479,3754.6,3753.7,2.00479]
[1641251151339,0.15044728,3754.5,3753.7,2.00479]
[1641251151737,0.15044728,3754.9,3753.7,2.00479]
[1641251151937,0.15044728,3754.4,3753.7,2.00479]
[1641251152137,0.15044728,3754.8,3753.7,2.00479]
[1641251152342,0.15044728,3754.3,3753.7,2.00479]
[1641251152641,0.15044728,3754.2,3753.7,2.00479]
[1641251152838,0.15044728,3754.2,3754.1,2.00479]
[1641251153037,0.15044728,3754.2,3754.1,3.33083358]
[1641251153238,0.15044728,3754.3,3754.1,3.33083358]
[1641251153439,0.15044728,3754.2,3754.1,3.33083358]
[1641251153839,0.229991,3754.2,3754.1,3.33083358]
[1641251154039,0.15044728,3754.3,3754.1,3.33083358]
[1641251154239,0.15044728,3754.2,3754.1,3.33083358]
[1641251154641,0.15044728,3754.7,3754.1,3.33083358]
[1641251154844,0.15044728,3754.2,3754.1,3.33083358]
[1641251155042,0.15044728,3754.6,3754.1,3.33083358]
[1641251155241,0.15044728,3754.2,3754.1,3.33083358]
[1641251155443,0.15044728,3754.5,3754.1,3.33083358]
[1641251155642,0.15044728,3754.2,3754.1,3.33083358]
[1641251156045,0.15044728,3754.5,3754.1,3.33083358]
[1641251156244,0.15044728,3754.2,3754.1,3.33083358]
[1641251156446,0.15044728,3754.4,3754.1,3.33083358]
[1641251156647,0.15044728,3754.2,3754.1,3.33083358]
[1641251156846,0.15044728,3754.3,3754.1,3.33083358]
[1641251157248,0.15044728,3754.2,3754.1,3.33083358]
[1641251157649,0.15044728,3754.8,3754.1,3.33083358]
[1641251158049,0.15044728,3754.2,3754.1,3.33083358]
[1641251158450,0.15044728,3754.8,3754.1,3.33083358]
[1641251158649,1.59102721,3754.9,3754.1,3.33083358]
[1641251158850,0.15044233,3754.7,3754.1,3.33083358]
[1641251159352,0.15044233,3754.8,3754.1,3.33083358]
[1641251159551,0.15044233,3754.6,3754.1,3.33083358]
[1641251159750,0.15044233,3754.7,3754.1,3.33083358]
[1641251159953,0.15044233,3754.5,3754.1,3.33083358]
[1641251160252,0.15044233,3754.6,3754.1,3.33083358]
[1641251160450,0.15044233,3754.4,3754.1,3.33083358]
[1641251160653,0.15044233,3754.5,3754.1,3.33083358]
[1641251160852,0.15044233,3754.3,3754.1,3.33083358]
[1641251161053,0.15044233,3754.4,3754.1,3.33083358]
[1641251161453,0.15044233,3754.8,3754.1,3.33083358]
[1641251161653,0.15044233,3754.3,3754.1,3.33083358]
[1641251161854,0.15044233,3754.7,3754.1,3.33083358]
[1641251162654,0.15044233,3754.8,3754.1,3.33083358]
[1641251162854,0.15044233,3754.6,3754.1,3.33083358]
[1641251163054,0.15044233,3754.7,3754.1,3.33083358]
[1641251163257,0.15044233,3754.5,3754.1,3.33083358]
[1641251163459,0.15044233,3754.6,3754.1,3.33083358]
[1641251163858,0.15044233,3754.4,3754.1,3.33083358]
[1641251164157,0.15044233,3754.3,3754.1,3.33083358]
[1641251164761,0.15044233,3754.8,3754.1,3.33083358]
[1641251164965,0.128157,3754.9,3754.1,3.33083358]
[1641251165363,0.15043384,3754.7,3754.1,3.33083358]
[1641251165564,0.15043384,3754.8,3754.1,3.33083358]
[1641251165765,0.15043384,3754.6,3754.1,3.33083358]
[1641251165966,0.15043384,3754.7,3754.1,3.33083358]
[1641251166166,0.15043384,3754.5,3754.1,3.33083358]
[1641251166369,0.15043384,3754.6,3754.1,3.33083358]
[1641251166567,0.15043384,3754.4,3754.1,3.33083358]
[1641251166767,0.15043384,3754.5,3754.1,3.33083358]
[1641251167168,0.15043384,3754.3,3754.1,3.33083358]
[1641251167368,0.229991,3754.2,3754.1,3.33083358]
[1641251167572,0.15043384,3754.2,3754.1,3.33083358]
[1641251167768,0.128157,3754.9,3754.1,3.33083358]
[1641251167969,0.15043714,3754.2,3754.1,3.33083358]
[1641251168169,0.15043714,3754.8,3754.1,3.33083358]
[1641251168369,0.15043714,3754.2,3754.1,3.33083358]
[1641251168569,0.15043714,3754.7,3754.1,3.33083358]
[1641251168770,0.15043714,3754.2,3754.1,3.33083358]
[1641251168970,0.15043714,3754.6,3754.1,3.33083358]
[1641251169170,0.128157,3754.9,3754.1,3.33083358]
[1641251169471,0.15043592,3754.5,3754.1,3.33083358]
[1641251169671,0.15043592,3754.8,3754.1,3.33083358]
[1641251169888,0.15043592,3754.4,3754.1,3.33083358]
[1641251170075,0.229991,3754.3,3754.1,3.33083358]
[1641251170273,0.15043592,3754.7,3754.1,3.33083358]
[1641251170472,0.128157,3754.9,3754.1,3.33083358]
[1641251170973,0.1504328,3754.8,3754.1,3.33083358]
[1641251171174,0.1504328,3754.8,3754.1,3.92053358]
[1641251174281,0.1504328,3754.9,3754.1,3.92053358]
[1641251174480,0.1504328,3754.9,3754.1,5.42053358]
[1641251174679,2.00479,3755.0,3754.2,1.33088982]
[1641251174879,2.00479,3755.0,3754.2,5.59244182]
[1641251175284,2.00479,3755.0,3754.5,2.00479]
[1641251175487,1.33071272,3756.8,3754.9,2.83057107]
[1641251175681,6.38572904,3758.4,3755.4,1.5]
[1641251175682,1.33057107,3757.6,3755.4,1.5]
[1641251175885,1.33057107,3757.6,3756.8,0.001]
[1641251176083,0.128157,3757.5,3756.8,0.7788]
[1641251176481,0.128157,3757.5,3756.9,1.28645267]
[1641251176683,0.128157,3757.5,3756.9,1.41460967]
[1641251177284,2.00479,3757.0,3756.9,1.41460967]
[1641251178284,2.00479,3757.4,3756.9,1.41460967]
[1641251178686,2.00479,3757.4,3756.9,2.74452247]
[1641251178886,62.5292,3758.6,3757.4,0.001]
[1641251179086,1.5,3758.4,3757.4,0.001]
[1641251179288,2.00479,3758.0,3757.4,0.001]
[1641251179487,2.132947,3758.0,3757.5,0.96330757]
[1641251179787,2.00479,3758.0,3757.5,0.96330757]
[1641251179986,1.32992341,3759.1,3757.5,0.96330757]
[1641251180189,1.5,3759.0,3757.5,0.96330757]
[1641251180389,1.32992341,3759.1,3757.5,0.96330757]
[1641251180588,30.5325,3759.5,3757.5,2.293017]
[1641251180787,12.77970943,3759.7,3757.5,2.293017]
[1641251181189,2.00479,3758.9,3758.1,2.00479]
[1641251181386,11.45,3758.8,3757.4,0.001]
[1641251181589,1.5,3757.8,3757.4,0.001]
[1641251181889,0.5761,3757.8,3757.4,0.001]
[1641251182088,0.5761,3757.8,3757.1,2.00479]
[1641251182487,0.5761,3757.8,3757.2,1.31233876]
[1641251182889,2.0591,3758.8,3757.2,1.31233876]
[1641251183291,2.00479,3757.6,3757.2,1.31233876]
[1641251183492,2.00479,3757.6,3757.2,1.44049576]
[1641251185291,2.00479,3757.9,3757.3,1.5]
[1641251185490,2.00479,3757.9,3757.3,0.7134]
[1641251185689,2.00479,3757.9,3757.3,2.043189]
[1641251185889,2.00479,3757.9,3757.3,0.7134]
[1641251186091,2.00479,3757.9,3757.3,3.543189]
[1641251186291,2.00479,3757.9,3757.8,1.32959098]
[1641251186490,2.234781,3757.9,3757.8,1.32959098]
[1641251186690,2.00479,3757.9,3757.8,2.30211674]
[1641251186889,2.00479,3757.9,3757.8,0.97252576]
[1641251187492,0.128157,3758.2,3757.8,0.97252576]
[1641251187696,1.88888547,3759.5,3757.8,0.97252576]
[1641251188091,13.33888547,3759.5,3757.8,0.97252576]
[1641251188691,0.5591,3759.5,3757.8,0.97252576]
[1641251188893,1.1608153,3760.0,3758.5,1.5]
[1641251189093,1.1608153,3760.0,3758.8,1.32926755]
[1641251189293,1.1608153,3760.0,3759.5,2.00479]
[1641251189491,1.1608153,3760.0,3759.5,2.77069]
[1641251189693,4.4643,3759.6,3759.5,2.77069]
[1641251189894,4.4643,3759.6,3759.5,3.97185012]
[1641251190595,0.73406025,3759.6,3759.5,3.97185012]
[1641251190794,0.96405125,3759.6,3759.5,1.96706012]
[1641251190994,1.11428768,3759.6,3759.5,1.20116012]
[1641251191294,2.88908668,3759.6,3759.5,1.20116012]
[1641251191795,0.88429668,3759.6,3759.5,1.20116012]
[1641251192195,0.73406025,3759.6,3759.5,1.20116012]
[1641251193199,0.73406025,3759.6,3759.5,3.20595012]
[1641251194000,0.96405125,3759.6,3759.5,3.20595012]
[1641251194600,0.73406025,3759.6,3759.5,3.20595012]
[1641251196003,0.96405125,3759.6,3759.5,3.20595012]
[1641251196402,0.73406025,3759.6,3759.5,3.20595012]
[1641251197904,0.96405125,3759.6,3759.5,3.20595012]
[1641251198106,0.73406025,3759.6,3759.5,3.20595012]
[1641251198704,0.96405125,3759.6,3759.5,3.20595012]
[1641251199307,0.96405125,3759.6,3759.5,1.20116012]
[1641251199504,0.96405125,3759.6,3757.1,1.32970413]
[1641251199505,4.37856405,3759.6,3757.1,1.32970413]
[1641251199704,1.5,3758.8,3756.6,31.9247]
[1641251199905,1.5,3758.3,3756.6,31.9247]
[1641251200105,1.5,3758.3,3756.8,4.257867]
[1641251200506,1.5,3758.3,3756.8,5.58783286]
[1641251201307,2.00479,3757.6,3756.8,7.59262286]
[1641251201508,2.00479,3757.6,3756.9,0.90316909]
[1641251201908,2.132947,3757.6,3756.9,0.90316909]
[1641251202108,2.132947,3757.6,3756.9,0.77501209]
[1641251203511,2.132947,3757.6,3757.0,0.128157]
[1641251204111,2.132947,3757.6,3756.9,0.77501209]
[1641251204512,2.78359,3757.6,3756.9,0.77501209]
[1641251204912,2.78359,3757.6,3757.0,1.32990395]
[1641251205515,2.78359,3757.6,3757.1,0.128157]
[1641251206720,2.911747,3757.6,3757.1,0.128157]
[1641251207321,2.78359,3757.6,3757.1,0.128157]
[1641251207724,0.73406025,3759.6,3757.5,1.5]
[1641251207921,0.73406025,3759.6,3757.2,1.5]
[1641251208123,0.73406025,3759.6,3757.6,4.25696]
[1641251208322,0.15027395,3759.5,3757.4,1.5]
[1641251208525,1.5,3759.2,3757.1,2.250957]
[1641251208724,1.5,3759.2,3757.2,0.93856238]
[1641251208923,1.5,3758.9,3757.4,1.32974656]
[1641251209124,2.2936,3758.9,3757.4,1.32974656]
[1641251209325,2.00479,3758.3,3757.4,3.33453656]
[1641251209527,0.128157,3758.2,3757.2,0.93856238]
[1641251210029,0.15027395,3758.1,3757.2,0.93856238]
[1641251210229,0.75117395,3758.1,3757.2,0.93856238]
[1641251210627,0.15027395,3758.0,3757.2,0.93856238]
[1641251211431,2.00479,3757.3,3757.2,0.93856238]
[1641251212528,2.234781,3757.3,3757.2,0.93856238]
[1641251212728,2.00479,3758.3,3757.2,0.93856238]
[1641251212928,1.32996232,3759.0,3757.2,0.93856238]
[1641251213128,2.23406025,3759.6,3757.2,0.93856238]
[1641251213329,2.00479,3758.7,3757.9,2.00479]
[1641251213534,0.128157,3758.6,3757.9,2.00479]
[1641251213730,0.128157,3758.6,3757.5,2.00479]
[1641251213930,0.27842659,3758.6,3758.0,0.70605558]
[1641251214330,0.15026959,3758.5,3758.0,0.70605558]
[1641251215331,2.00479,3758.2,3758.0,0.70605558]
[1641251215534,0.229991,3758.1,3758.0,0.70605558]
[1641251216533,0.38027632,3758.1,3758.0,0.70605558]
[1641251217736,1.88027632,3758.1,3756.2,1.33017461]
[1641251217936,0.38027632,3758.1,3753.1,11.45]
[1641251218138,1.5,3757.4,3755.6,1.33026308]
[1641251218339,1.5,3757.4,3751.8,0.34]
[1641251218340,1.5,3757.0,3755.5,1.33041706]
[1641251219135,1.5,3757.0,3754.8,2.99370014]
[1641251219338,2.00479,3756.7,3755.9,2.00479]
[1641251219541,0.128157,3756.6,3755.9,2.00479]
[1641251219740,0.661557,3756.6,3756.0,1.3296663]
[1641251222743,12.111557,3756.6,3756.0,1.3296663]
[1641251224545,0.15034638,3756.5,3756.0,1.3296663]
[1641251225344,2.00479,3756.2,3756.0,1.3296663]
[1641251225544,0.229991,3756.1,3756.0,1.3296663]
[1641251227647,2.00479,3756.2,3756.0,1.3296663]
[1641251228649,0.229991,3756.1,3756.0,1.3296663]
[1641251229650,11.679991,3756.1,3754.3,29.6634]
[1641251229852,11.679991,3756.1,3755.1,0.7665284]
[1641251230052,11.679991,3756.1,3754.2,2.99370014]
[1641251230253,13.179991,3756.1,3754.4,1.33082606]
[1641251230453,11.679991,3756.1,3754.4,1.33082606]
[1641251230854,11.679991,3756.1,3753.9,2.99370014]
[1641251230855,0.229991,3756.1,3754.7,2.83072157]
[1641251231054,0.229991,3756.1,3754.7,1.98822157]
[1641251231354,0.229991,3756.1,3754.8,3.50479]
[1641251231558,2.00479,3755.7,3754.8,3.50479]
[1641251231753,2.00479,3755.7,3754.9,0.128157]
[1641251232154,2.00479,3755.7,3755.1,1.33056753]
[1641251232556,0.128157,3755.6,3755.1,1.33056753]
[1641251232754,0.648257,3755.6,3754.8,2.00479]
[1641251232955,0.648257,3755.6,3755.0,0.66792224]
[1641251233656,2.00479,3755.7,3755.0,0.66792224]
[1641251233657,0.84930789,3755.7,3755.0,0.66792224]
[1641251234059,1.5,3755.1,3754.1,2.99370014]
[1641251234457,1.5,3754.9,3754.1,2.99370014]
[1641251234658,11.45,3754.8,3753.4,2.99370014]
[1641251235058,1.5,3754.6,3753.4,2.99370014]
[1641251235457,2.00479,3753.5,3753.4,2.99370014]
[1641251235656,2.81979,3753.5,3753.4,2.99370014]
[1641251235861,2.81979,3753.5,3753.4,4.30236319]
[1641251236058,2.81979,3753.5,3753.4,1.30866305]
[1641251236259,3.049781,3753.5,3753.4,1.30866305]
[1641251236461,3.049781,3753.5,3752.5,4.99849014]
[1641251236664,1.5,3753.2,3752.5,2.99370014]
[1641251236858,2.81979,3753.5,3752.6,0.67208752]
[1641251237060,14.26979,3753.5,3752.6,0.67208752]
[1641251237262,1.5,3753.3,3752.6,0.67208752]
[1641251237461,2.00479,3752.7,3752.6,0.67208752]
[1641251237658,2.79349,3752.7,3752.6,0.67208752]
[1641251238260,0.7887,3752.7,3752.6,4.41347175]
[1641251238660,2.00479,3753.5,3752.6,4.41347175]
[1641251239363,2.00479,3753.5,3752.6,5.18557175]
[1641251239561,2.00479,3753.5,3752.9,2.00479]
[1641251240662,1.1608153,3753.6,3752.9,3.50479]
[1641251240961,1.46287021,3753.9,3752.9,3.50479]
[1641251241162,2.00479,3754.1,3753.2,1.33124062]
[1641251241367,1.18452823,3754.2,3752.9,2.00479]
[1641251241562,1.18452823,3754.2,3754.1,2.00479]